bitfinex/quotes_ETHUSD_20220310
["timestamp","ask_amount","ask_price","bid_price","bid_amount"]
[1646907226395,0.01414696,2604.4,2604.1,2.95682866]
[1646907226595,0.01414696,2604.4,2604.3,0.08659552]
[1646907226798,0.00124901,2605.2,2604.3,1.21362884]
[1646907227095,7.29501044,2605.4,2604.4,0.08363008]
[1646907227294,4.11756121,2605.4,2604.4,0.08363008]
[1646907227493,4.11756121,2605.4,2604.5,0.96066]
[1646907227494,0.04625612,2605.4,2604.5,0.96066]
[1646907227697,0.04625612,2605.4,2604.6,0.06987502]
[1646907228001,0.57271732,2605.6,2605.1,0.99907255]
[1646907228196,0.57271732,2605.6,2604.6,0.06987502]
[1646907228595,0.57271732,2605.6,2605.0,1.92105]
[1646907228996,2.36538426,2605.4,2605.0,1.92105]
[1646907229243,2.36538426,2605.4,2605.1,1.12703118]
[1646907229633,2.36538426,2605.5,2605.1,1.12703118]
[1646907230350,2.66538426,2605.5,2605.0,5.95391242]
[1646907230544,1.88882079,2605.1,2605.0,5.95391242]
[1646907231145,1.88882079,2605.1,2605.0,2.95391242]
[1646907231544,1.88882079,2605.1,2605.0,3.9160901]
[1646907232644,0.34694582,2605.1,2605.0,2.95391242]
[1646907233094,0.34694582,2605.1,2605.0,1.25791465]
[1646907233591,1.76062093,2605.1,2605.0,1.25791465]
[1646907233997,1.76062093,2605.1,2605.0,4.25791465]
[1646907234195,0.34694582,2605.1,2605.0,4.25791465]
[1646907235599,0.34694582,2605.1,2605.0,7.68558223]
[1646907235799,0.34694582,2605.1,2605.0,4.18558223]
[1646907235997,1.41620494,2605.2,2605.0,1.18558223]
[1646907236205,0.00342802,2605.2,2605.0,1.18558223]
[1646907236403,0.94143751,2605.1,2605.0,1.18558223]
[1646907236606,1.2544093,2605.1,2605.0,1.18558223]
[1646907236858,1.2544093,2605.1,2605.0,4.68558223]
[1646907236859,0.3134819,2605.1,2605.0,4.68558223]
[1646907237059,0.00204607,2605.2,2605.0,6.40214791]
[1646907237264,0.31552797,2605.2,2605.1,10.5]
[1646907237456,0.31552797,2605.2,2605.0,5.26034]
[1646907237457,0.3134819,2605.2,2605.0,5.26034]
[1646907237656,0.3134819,2605.1,2605.0,5.26034]
[1646907237857,0.00205819,2605.2,2605.1,20.26176]
[1646907238056,0.00205819,2605.2,2605.1,24.12957433]
[1646907238256,0.00205819,2605.2,2605.1,10.62957433]
[1646907238756,1.41277692,2605.7,2605.1,10.62957433]
[1646907238957,1.42703481,2605.7,2605.5,1.12775885]
[1646907239157,1.42703481,2605.7,2605.5,1.22908051]
[1646907239557,0.01425789,2605.7,2605.5,1.22908051]
[1646907239958,1.41277692,2605.8,2605.5,1.22908051]
[1646907240159,1.41277692,2605.8,2605.5,3.14954051]
[1646907240361,0.00356474,2605.7,2605.6,3.5]
[1646907240590,0.00356474,2605.7,2605.5,3.14954051]
[1646907241197,1.41277692,2606.0,2605.5,3.14954051]
[1646907241397,1.41277692,2606.0,2605.7,0.9601]
[1646907241599,1.41277692,2606.0,2605.7,2.88048]
[1646907241998,1.41277692,2606.0,2605.8,3.0]
[1646907242596,1.41633771,2606.0,2605.8,3.0]
[1646907242796,1.41277692,2605.9,2605.8,3.0]
[1646907242999,1.41277692,2605.9,2605.7,4.92038]
[1646907243895,1.41633774,2605.9,2605.7,4.92038]
[1646907244097,1.41633774,2605.9,2605.7,1.92038]
[1646907244361,1.41633774,2605.9,2605.6,0.96018]
[1646907244565,1.41633774,2605.9,2605.4,3.0]
[1646907244566,0.00356082,2605.9,2605.4,3.0]
[1646907244761,1.41277692,2605.7,2605.4,3.0]
[1646907244965,1.41277692,2605.7,2605.3,3.0]
[1646907245564,1.41277692,2605.6,2605.3,3.0]
[1646907245963,0.93740505,2605.4,2605.0,0.25]
[1646907246367,0.93740505,2605.4,2604.6,0.072954]
[1646907246368,0.93740505,2605.2,2604.6,0.072954]
[1646907246564,0.93740505,2605.1,2604.4,0.08822276]
[1646907246765,1.34504,2605.3,2604.4,0.08822276]
[1646907246766,0.93740505,2605.2,2604.4,0.08822276]
[1646907247065,1.23740505,2605.2,2604.7,1.11114055]
[1646907247467,0.00356524,2604.9,2604.7,1.11114055]
[1646907247765,0.7066496,2604.9,2604.7,1.11114055]
[1646907248390,0.70308436,2604.9,2604.7,1.11114055]
[1646907248791,0.70664957,2604.9,2604.7,1.11114055]
[1646907249593,0.70308436,2604.9,2604.7,1.11114055]
[1646907249792,0.70627673,2604.9,2604.7,1.11114055]
[1646907250794,0.3,2605.2,2604.7,1.11114055]
[1646907250795,0.70308436,2605.0,2604.8,0.08939936]
[1646907250993,0.70308436,2605.0,2604.7,1.11114055]
[1646907250994,0.00319237,2604.9,2604.7,1.11114055]
[1646907251194,0.70627673,2604.9,2604.7,1.11114055]
[1646907251494,0.00319237,2604.9,2604.7,1.11114055]
[1646907251942,0.70308436,2605.0,2604.7,1.11114055]
[1646907252143,0.70308436,2605.1,2604.7,0.97973488]
[1646907252346,0.00319237,2604.9,2604.7,0.97973488]
[1646907253143,0.70308436,2605.1,2604.6,0.54426566]
[1646907253344,0.70308436,2605.3,2604.6,3.69303911]
[1646907253543,0.00330286,2604.9,2604.6,3.69303911]
[1646907253743,0.00330286,2604.9,2604.7,1.46294058]
[1646907254145,0.00330286,2604.9,2604.7,7.91171403]
[1646907254344,0.70308436,2605.3,2604.7,8.57218133]
[1646907254746,0.00330286,2604.9,2604.7,8.57218133]
[1646907255596,0.70308436,2605.2,2604.7,8.57218133]
[1646907255797,0.00330286,2604.9,2604.7,8.57218133]
[1646907255996,0.00330286,2604.9,2604.7,5.57218133]
[1646907256797,0.70308436,2605.2,2604.7,5.57218133]
[1646907257000,0.0033119,2604.9,2604.8,3.0]
[1646907258001,0.83059655,2605.2,2604.8,3.0]
[1646907258200,0.00331187,2605.0,2604.8,3.0]
[1646907259000,0.00331187,2605.0,2604.9,3.0]
[1646907259246,0.12751219,2605.0,2604.9,3.0]
[1646907259445,0.13082404,2605.0,2604.9,3.0]
[1646907259645,0.00331185,2605.0,2604.9,3.0]
[1646907260450,0.70308436,2605.1,2604.9,3.0]
[1646907260650,0.70639486,2605.1,2604.9,3.0]
[1646907260850,0.83390705,2605.1,2604.9,3.0]
[1646907261049,0.70639486,2605.1,2604.9,3.0]
[1646907261249,0.12751219,2605.0,2604.9,3.0]
[1646907261451,0.70639486,2605.1,2604.9,3.0]
[1646907261652,0.70308436,2605.0,2604.9,3.0]
[1646907262055,0.70308436,2605.0,2604.8,0.07361899]
[1646907262255,0.70308436,2605.0,2604.8,0.37361899]
[1646907262454,0.69557295,2605.0,2604.8,0.37361899]
[1646907262656,0.12751219,2604.9,2604.8,0.37361899]
[1646907262998,0.93740505,2605.2,2604.8,0.37361899]
[1646907263197,0.00331053,2605.0,2604.8,0.37361899]
[1646907264104,1.06491724,2605.3,2604.9,3.0]
[1646907264302,0.00331072,2605.0,2604.9,5.92087]
[1646907264502,0.12751219,2605.2,2605.0,4.35883636]
[1646907264503,0.12751219,2605.1,2605.0,4.35883636]
[1646907264901,0.12751219,2605.1,2605.0,4.65883636]
[1646907265204,0.93740505,2605.3,2605.1,3.4454648]
[1646907265403,1.94148996,2605.9,2605.2,3.5]
[1646907265404,1.0651306,2605.4,2605.2,3.5]
[1646907265604,1.0651306,2605.4,2605.2,3.4454648]
[1646907265605,0.12770937,2605.3,2605.2,3.4454648]
[1646907265806,0.12770937,2605.3,2605.2,4.7454648]
[1646907266001,0.88740505,2605.4,2605.2,7.7454648]
[1646907266202,0.88740505,2605.4,2605.3,3.4454648]
[1646907266604,0.12770937,2605.4,2605.3,4.4454648]
[1646907266861,1.54048629,2605.6,2605.3,4.4454648]
[1646907267061,0.12770937,2605.5,2605.3,1.90177835]
[1646907267366,0.12770937,2605.4,2605.3,0.90177835]
[1646907267765,1.54048629,2605.4,2605.3,0.90177835]
[1646907269065,1.54048629,2605.4,2605.3,3.90177835]
[1646907269264,1.54048629,2605.4,2605.3,4.90177835]
[1646907269666,0.12770937,2605.4,2605.3,4.90177835]
[1646907270268,1.423387,2605.4,2605.3,4.90177835]
[1646907270489,0.12770937,2605.4,2605.3,4.90177835]
[1646907271394,1.5517796,2605.4,2605.3,4.90177835]
[1646907271595,0.12770937,2605.4,2605.3,4.90177835]
[1646907271794,0.00356489,2605.5,2605.3,4.90177835]
[1646907272096,0.00356489,2605.5,2605.3,4.86201835]
[1646907272395,1.88882079,2605.6,2605.3,4.86201835]
[1646907272595,1.89227871,2605.5,2605.3,4.86201835]
[1646907272995,1.89227871,2605.5,2605.3,1.86201835]
[1646907272996,1.88882079,2605.4,2605.3,1.86201835]
[1646907273195,1.88882079,2605.4,2605.3,0.16625424]
[1646907273403,0.00345792,2605.5,2605.3,3.3734175]
[1646907273595,0.05307757,2605.5,2605.3,3.3734175]
[1646907273996,0.05653551,2605.5,2605.3,3.3734175]
[1646907274753,0.05307757,2605.5,2605.3,0.16625424]
[1646907275155,0.05653549,2605.5,2605.3,0.16625424]
[1646907275960,0.05307757,2605.5,2605.3,0.16625424]
[1646907276356,0.05636971,2605.5,2605.3,0.16625424]
[1646907277154,0.05307757,2605.5,2605.3,0.16625424]
[1646907277556,4.12426714,2605.5,2605.3,0.16625424]
[1646907277755,0.0467305,2605.4,2605.3,0.16625424]
[1646907278398,0.0467305,2605.4,2605.3,0.05217222]
[1646907279200,3.5467305,2605.4,2605.3,0.05217222]
[1646907279401,5.86538426,2605.4,2605.3,0.05217222]
[1646907279600,2.36538426,2605.4,2605.3,0.05217222]
[1646907279802,5.86538426,2605.4,2605.3,0.05217222]
[1646907280000,2.36538426,2605.4,2605.3,0.05217222]
[1646907280202,3.89723455,2605.5,2605.3,0.05217222]
[1646907280602,3.89723455,2605.5,2605.1,2.88043]
[1646907280803,2.36538426,2605.3,2604.6,0.25]
[1646907281002,4.46081,2605.2,2604.4,6.41628253]
[1646907281206,1.42563306,2604.5,2604.4,6.41628253]
[1646907281402,1.90083243,2604.7,2604.4,6.41628253]
[1646907281603,1.42559615,2604.5,2604.4,7.55182948]
[1646907282042,1.42559615,2604.5,2604.4,4.55182948]
[1646907282444,1.42559615,2604.5,2604.4,4.54541276]
[1646907283445,1.42559615,2604.5,2604.4,3.40986581]
[1646907283649,1.90083243,2604.7,2604.4,3.21806581]
[1646907283850,1.90083243,2604.5,2604.4,1.33492646]
[1646907284045,0.96097,2604.7,2604.4,1.33492646]
[1646907284246,1.90010981,2604.5,2604.4,1.33492646]
[1646907284446,0.96097,2604.7,2604.4,1.33492646]
[1646907284646,3.5,2604.8,2604.4,1.33492646]
[1646907284647,1.90006535,2604.5,2604.4,1.33492646]
[1646907285047,1.90006535,2604.6,2604.4,1.33492646]
[1646907285892,1.90006535,2604.6,2604.3,4.03410431]
[1646907286995,1.42469133,2604.4,2604.3,4.03410431]
[1646907287195,1.90006535,2604.6,2604.3,4.03410431]
[1646907287897,1.42457915,2604.4,2604.3,4.03410431]
[1646907288495,1.42457915,2604.5,2604.3,4.03410431]
[1646907288695,1.42457915,2604.6,2604.4,1.92116]
[1646907289100,1.42457915,2604.6,2604.5,3.0]
[1646907290348,1.42457915,2604.6,2604.4,1.92116]
[1646907292050,1.42457915,2604.6,2604.4,2.22116]
[1646907292251,1.42457915,2604.6,2604.4,3.1818111]
[1646907292450,1.42457915,2604.6,2604.4,3.26016365]
[1646907293293,1.42457915,2604.6,2604.4,0.60354433]
[1646907294095,1.50872286,2604.6,2604.4,0.60354433]
[1646907294300,0.08414371,2604.5,2604.4,0.60354433]
[1646907294897,1.42457915,2604.6,2604.4,1.56415103]
[1646907295099,1.42457915,2604.7,2604.4,1.56415103]
[1646907295298,1.42457915,2604.7,2604.4,1.86415103]
[1646907295500,1.42457915,2604.7,2604.5,0.9606]
[1646907295697,1.90006535,2604.9,2604.5,0.9606]
[1646907295698,1.42457915,2604.6,2604.5,0.9606]
[1646907303897,1.42457915,2604.7,2604.5,0.9606]
[1646907304097,1.42457915,2604.7,2604.5,3.9606]
[1646907304554,1.42457915,2604.6,2604.5,3.9606]
[1646907304950,1.42457915,2604.7,2604.5,3.9606]
[1646907305350,1.42457915,2604.6,2604.5,3.9606]
[1646907306052,1.42457915,2604.6,2604.5,0.9606]
[1646907308095,1.42457915,2604.6,2604.4,1.41650881]
[1646907308096,0.05218808,2604.5,2604.4,1.41650881]
[1646907308293,1.95183114,2604.5,2604.4,1.41650881]
[1646907308697,0.05218808,2604.5,2604.4,1.41650881]
[1646907308895,3.54693812,2604.8,2604.4,1.41650881]
[1646907309096,0.05054054,2604.7,2604.4,3.18490075]
[1646907309297,0.05054054,2604.7,2604.6,1.96040075]
[1646907310197,3.55054054,2604.7,2604.6,1.96040075]
[1646907310397,3.55054054,2604.7,2604.6,7.5e-07]
[1646907310598,3.55054054,2604.7,2604.4,1.96040075]
[1646907310599,0.00079925,2604.5,2604.4,1.96040075]
[1646907310798,0.96182925,2604.5,2604.4,1.96040075]
[1646907311851,0.00079925,2604.5,2604.4,1.96040075]
[1646907313253,0.00079925,2604.5,2604.4,0.26420655]
[1646907314055,0.00079925,2604.5,2604.3,4.5]
[1646907314257,0.05369462,2604.7,2604.3,4.5]
[1646907314457,0.553,2604.9,2604.3,4.5]
[1646907314458,1.89904243,2604.5,2604.4,0.26420655]
[1646907314657,3.32626426,2604.9,2604.4,0.26420655]
[1646907314861,1.89898839,2604.5,2604.4,0.26420655]
[1646907316098,1.89898839,2604.5,2604.4,1.39784815]
[1646907316901,0.11112936,2604.5,2604.4,1.39784815]
[1646907317102,0.11112936,2604.8,2604.4,1.39784815]
[1646907317300,0.11112936,2604.7,2604.4,1.39784815]
[1646907317503,0.11112936,2604.6,2604.4,1.39784815]
[1646907317704,0.11112936,2604.5,2604.4,1.39784815]
[1646907318102,0.11112936,2604.8,2604.4,1.39784815]
[1646907318300,0.11112936,2604.7,2604.4,1.39784815]
[1646907318499,0.11112936,2604.6,2604.4,1.39784815]
[1646907318701,0.11112936,2604.5,2604.4,1.39784815]
[1646907318900,0.11112936,2604.8,2604.4,1.39784815]
[1646907319100,2.47651362,2604.8,2604.4,0.26420655]
[1646907319359,2.47651362,2604.8,2604.3,5.46086]
[1646907319759,2.47651362,2604.8,2604.6,0.26420655]
[1646907323099,37.5,2604.7,2604.5,0.60302945]
[1646907323298,1.40188955,2604.6,2604.5,0.60302945]
[1646907323898,0.11112936,2604.6,2604.5,0.60302945]
[1646907324099,0.11112936,2604.6,2604.3,6.42196]
[1646907324303,0.42625808,2604.4,2604.3,6.42196]
[1646907324500,0.53738744,2604.4,2604.3,6.42196]
[1646907324901,2.9027717,2604.4,2604.3,6.42196]
[1646907325101,3.4557717,2604.4,2604.3,6.42196]
[1646907325301,4.4557717,2604.4,2604.3,6.42196]
[1646907325505,3.4557717,2604.4,2604.3,6.42196]
[1646907325701,4.4557717,2604.4,2604.3,6.42196]
[1646907325902,3.4557717,2604.4,2604.3,6.42196]
[1646907326102,2.09038744,2604.4,2604.3,6.42196]
[1646907326303,3.4557717,2604.4,2604.3,6.42196]
[1646907326764,4.4557717,2604.4,2604.3,4.5]
[1646907327055,3.4557717,2604.4,2604.3,4.5]
[1646907327253,4.4557717,2604.4,2604.3,4.5]
[1646907327455,3.4557717,2604.4,2604.3,4.5]
[1646907327654,4.4557717,2604.4,2604.3,4.5]
[1646907329256,7.9557717,2604.4,2604.3,4.5]
[1646907330257,2.09038744,2604.4,2604.3,4.5]
[1646907330495,4.59038744,2604.4,2604.3,4.5]
[1646907330901,2.09038744,2604.4,2604.3,4.5]
[1646907331301,1.09038744,2604.4,2604.3,4.5]
[1646907332607,0.53738744,2604.4,2604.3,4.5]
[1646907333308,2.32446786,2604.4,2604.3,2.80390996]
[1646907333707,0.53738744,2604.4,2604.3,2.80390996]
[1646907335553,2.32466376,2604.4,2604.3,2.80390996]
[1646907335750,2.43579312,2604.4,2604.3,2.80390996]
[1646907336758,0.53738744,2604.4,2604.3,2.80390996]
[1646907337557,0.53738744,2604.4,2604.3,2.87880125]
[1646907337995,0.53738744,2604.4,2604.3,1.20504661]
[1646907340503,1.96164216,2604.4,2604.3,1.20504661]
[1646907341954,1.01313183,2605.0,2604.4,32.8843]
[1646907341955,0.01313183,2605.0,2604.4,32.8843]
[1646907342156,0.94950177,2604.6,2604.5,5.99737]
[1646907342355,0.01313183,2605.0,2604.6,58.46723086]
[1646907342561,0.01313183,2605.0,2604.8,0.3843]
[1646907342756,0.00124901,2605.5,2604.9,0.1918]
[1646907342957,0.00124901,2605.6,2605.1,0.25]
[1646907343259,0.3839,2605.8,2605.4,0.07050908]
[1646907343457,0.3839,2605.8,2605.3,1.26022]
[1646907343658,0.3839,2605.8,2605.5,0.06894422]
[1646907343856,2.36538426,2606.2,2605.5,0.06894422]
[1646907344258,2.36538426,2606.2,2605.9,1.14895611]
[1646907344459,2.36538426,2606.2,2605.9,0.37418797]
[1646907344660,0.00203954,2606.0,2605.9,0.37418797]
[1646907344860,0.00203954,2606.0,2605.9,0.45964232]
[1646907345702,2.36538426,2606.3,2605.9,0.45964232]
[1646907345903,4.6059014,2606.8,2605.9,0.45964232]
[1646907345904,0.00203954,2606.1,2605.9,0.45964232]
[1646907346104,0.00203954,2606.1,2605.9,1.33437797]
[1646907346509,0.00203954,2606.1,2605.9,5.22087797]
[1646907346904,2.36538426,2606.6,2606.0,3.5]
[1646907347106,2.36538426,2606.7,2606.1,1.92005]
[1646907347305,0.01424311,2606.5,2606.4,1.04087118]
[1646907348108,2.36538426,2606.8,2606.4,1.04087118]
[1646907348411,0.00356105,2606.6,2606.5,0.95999]
[1646907349275,2.36538426,2606.8,2606.5,0.95999]
[1646907349475,2.36538426,2606.9,2606.5,0.95999]
[1646907349676,0.00356099,2606.7,2606.5,0.95999]
[1646907350081,21.12677,2606.2,2605.7,1.67170748]
[1646907350278,1.41738172,2606.1,2605.6,1.10451027]
[1646907350580,0.70833162,2605.7,2605.5,1.0]
[1646907350779,2.88061,2605.8,2605.1,0.6843]
[1646907350980,0.70837996,2605.5,2605.1,1.2373]
[1646907351178,0.70837996,2605.4,2605.1,0.9373]
[1646907351383,0.70837996,2605.4,2605.1,0.3843]
[1646907351384,0.70837996,2605.3,2605.1,0.3843]
[1646907351578,0.70837996,2605.3,2604.9,0.00327132]
[1646907351579,0.70837996,2605.3,2604.9,0.94442706]
[1646907351782,0.70837996,2605.3,2604.3,1.68315532]
[1646907351783,3.58975996,2605.2,2604.4,0.3843]
[1646907351979,0.70837996,2605.1,2604.7,0.3843]
[1646907352179,0.70837996,2605.1,2604.9,0.00327027]
[1646907352380,1.66883996,2605.1,2604.9,0.00327027]
[1646907352880,1.66883996,2605.1,2604.4,0.3843]
[1646907353106,0.70837996,2605.0,2604.4,0.3843]
[1646907353305,0.70837996,2604.9,2604.3,1.13015532]
[1646907353506,0.70837996,2604.8,2604.3,1.13015532]
[1646907353810,1.19566828,2604.5,2604.3,1.13015532]
[1646907354204,3.59041996,2604.6,2604.3,1.13015532]
[1646907354405,3.59041996,2604.6,2604.4,0.00330997]
[1646907354809,0.70837996,2604.5,2604.4,0.00330997]
[1646907355009,1.66907996,2604.5,2604.3,1.13015532]
[1646907355411,2.59040565,2604.5,2604.3,1.13015532]
[1646907355610,0.70837996,2604.4,2604.3,1.13015532]
[1646907356009,0.70837996,2604.4,2603.8,2.2712]
[1646907356010,1.92189,2604.3,2603.8,2.2712]
[1646907356211,2.63020006,2604.3,2603.7,0.3843]
[1646907356612,0.70831006,2604.2,2603.7,0.3843]
[1646907356857,0.70831006,2604.2,2603.7,1.45980719]
[1646907357057,0.70831006,2604.2,2603.8,0.07091934]
[1646907357759,1.66918006,2604.2,2603.8,0.07091934]
[1646907357959,1.66918006,2604.2,2603.9,0.00355643]
[1646907357960,0.96087,2604.2,2603.9,0.00355643]
[1646907358860,0.96087,2604.2,2603.8,0.07091934]
[1646907359264,0.96087,2604.2,2603.9,0.00355641]
[1646907360063,0.96087,2604.2,2603.8,0.07091934]
[1646907360260,0.70831006,2604.5,2603.8,0.07091934]
[1646907360261,0.96062,2604.4,2603.8,0.45521934]
[1646907360500,0.96062,2604.4,2603.9,0.00355641]
[1646907360702,0.96062,2604.4,2603.9,0.94085641]
[1646907361100,0.96062,2604.4,2604.0,0.07239258]
[1646907361702,0.9595253,2604.4,2604.0,0.07594893]
[1646907361908,0.07949579,2604.3,2604.0,0.07594893]
[1646907362307,2.00104579,2604.3,2604.0,0.07594893]
[1646907362505,0.07949579,2604.2,2604.0,0.07239258]
[1646907362705,1.04026579,2604.2,2604.1,0.99841212]
[1646907362906,1.04026579,2604.2,2604.1,1.29841212]
[1646907363408,0.07949579,2604.2,2604.1,1.29841212]
[1646907363606,0.07949579,2604.6,2604.1,1.85141212]
[1646907363808,0.07949579,2604.5,2604.1,2.23571212]
[1646907364349,0.71299671,2605.0,2604.7,1.13028224]
[1646907364553,0.0794843,2604.9,2604.7,1.43028224]
[1646907364748,0.00343764,2605.0,2604.7,1.43028224]
[1646907364749,0.0794843,2604.8,2604.7,1.43028224]
[1646907365354,0.00343818,2605.0,2604.8,12.5]
[1646907365653,0.00343818,2605.0,2604.8,13.053]
[1646907365853,0.00343818,2605.0,2604.8,14.053]
[1646907366353,0.00203375,2605.0,2604.8,14.053]
[1646907367155,0.00203375,2605.0,2604.8,15.17585723]
[1646907367352,1.91579833,2605.3,2604.8,1.71564773]
[1646907367551,0.00203375,2605.0,2604.8,1.71564773]
[1646907368000,0.00203375,2605.0,2604.7,0.3]
[1646907368201,0.71034381,2605.0,2604.7,0.3]
[1646907368599,0.70831006,2605.0,2604.4,1.3]
[1646907368803,0.71033926,2605.0,2604.4,0.3]
[1646907369006,0.70831006,2604.9,2604.1,3.8]
[1646907369206,0.70831006,2604.9,2604.5,1.1168029]
[1646907369404,2.62957006,2604.9,2604.5,1.1168029]
[1646907371762,2.62957006,2604.9,2604.3,0.96407357]
[1646907372059,2.62957006,2604.9,2604.3,0.3]
[1646907372254,2.62957006,2604.9,2604.1,4.353]
[1646907372459,0.70831006,2604.8,2604.3,0.00356048]
[1646907372856,1.66888006,2604.8,2604.3,1.01268552]
[1646907373056,1.66888006,2604.8,2604.4,0.08543461]
[1646907373556,1.66888006,2604.8,2604.4,0.08108965]
[1646907375357,0.70831006,2604.8,2604.4,0.08108965]
[1646907377105,0.70831006,2604.8,2604.4,0.553]
[1646907377306,0.70831006,2604.8,2604.7,1.21240276]
[1646907379775,3.5,2604.8,2604.3,10.495]
[1646907379974,0.71012912,2604.4,2604.3,10.495]
[1646907380180,3.55856364,2604.4,2604.3,10.495]
[1646907380373,1.00309445,2604.4,2604.3,10.495]
[1646907380775,1.10190058,2604.4,2604.3,4.72891]
[1646907381172,1.29370058,2604.4,2603.8,3.43409045]
[1646907381373,1.67141607,2604.0,2603.6,1.1754]
[1646907381574,0.05864984,2603.8,2603.0,1.2016]
[1646907382074,0.05864984,2603.8,2602.7,3.5048789]
[1646907382473,0.96108,2603.7,2602.7,3.5048789]
[1646907382679,0.06300865,2603.5,2603.1,1.02497372]
[1646907383199,0.06300865,2603.5,2603.1,1.32497372]
[1646907383700,0.96115,2603.4,2602.7,2.2336789]
[1646907383900,0.96115,2603.4,2602.7,0.3582789]
[1646907384100,0.96115,2603.4,2602.7,0.0582789]
[1646907384801,0.96115,2603.4,2602.7,0.3582789]
[1646907385001,0.96115,2603.4,2603.1,0.86565229]
[1646907385213,0.07145188,2603.3,2603.1,0.86565229]
[1646907385409,0.1014024,2603.2,2603.1,0.86565229]
[1646907385608,0.1014024,2603.2,2603.1,1.16565229]
[1646907387473,0.16815427,2603.6,2603.1,1.16565229]
[1646907387674,0.1014024,2603.5,2603.1,1.16565229]
[1646907388473,0.56011618,2603.7,2603.1,1.16565229]
[1646907388673,0.05883506,2603.6,2603.1,1.16565229]
[1646907389273,0.05883506,2603.6,2603.3,0.00355675]
[1646907390072,0.05883506,2603.6,2603.1,1.16565229]
[1646907390500,0.05883506,2603.6,2603.3,0.00345002]
[1646907391296,0.05883506,2603.6,2603.1,1.16565229]
[1646907391699,0.05883506,2603.6,2603.3,0.00345002]
[1646907392505,0.05883506,2603.6,2603.1,1.16565229]
[1646907392907,0.05883506,2603.6,2603.3,0.00345002]
[1646907393309,0.05883506,2603.6,2603.1,1.01734159]
[1646907394108,0.05883506,2603.6,2603.3,0.00328082]
[1646907394950,0.05883506,2603.6,2603.1,1.97825929]
[1646907395951,0.05883506,2603.6,2603.1,1.01734159]
[1646907397255,0.05883506,2603.6,2603.5,0.96952657]
[1646907398306,0.05883506,2603.6,2603.2,0.00355684]
[1646907398500,0.05883506,2603.6,2603.0,0.3]
[1646907398697,0.05883506,2603.6,2603.2,0.003557]
[1646907399703,0.05883506,2603.6,2603.2,1.52485769]
[1646907399902,0.05883506,2603.6,2603.2,1.52841457]
[1646907401102,0.05883506,2603.6,2603.2,1.22485769]
[1646907401305,0.05883506,2603.6,2603.2,1.22841457]
[1646907402160,0.05883506,2603.6,2603.2,1.22485769]
[1646907402359,0.05883506,2603.6,2603.2,1.22829453]
[1646907402559,0.05883506,2603.6,2603.2,0.00343684]
[1646907402760,3.55883506,2603.6,2603.2,0.00343684]
[1646907402959,0.44026119,2603.5,2603.2,0.00343684]
[1646907403159,0.04982928,2603.4,2603.2,0.00343684]
[1646907403364,0.04982928,2603.4,2602.9,0.3]
[1646907403561,0.04982928,2603.4,2603.2,0.00343684]
[1646907403762,0.04982928,2603.4,2603.2,1.17484033]
[1646907404561,0.04982928,2603.4,2603.2,1.17140349]
[1646907404763,0.05842507,2603.6,2603.2,1.17484025]
[1646907405799,0.05842507,2603.6,2603.2,1.17140349]
[1646907405998,0.05842507,2603.6,2603.2,1.1746867]
[1646907407001,0.05842507,2603.6,2603.2,1.17140349]
[1646907407200,0.05842507,2603.6,2603.2,1.1746867]
[1646907408201,0.3843,2603.6,2603.2,1.17140349]
[1646907408402,0.06299957,2603.5,2603.2,1.1746867]
[1646907408604,0.21561573,2603.5,2603.2,1.1746867]
[1646907408805,0.15261616,2603.4,2603.2,1.1746867]
[1646907409250,0.15261616,2603.4,2603.2,0.00328321]
[1646907409451,0.15261616,2603.4,2603.0,1.92209]
[1646907409650,0.15261616,2603.4,2603.2,0.0033056]
[1646907410350,0.20432761,2603.4,2603.2,0.0033056]
[1646907410650,0.15261616,2603.3,2603.0,1.08218501]
[1646907410854,0.15261616,2603.3,2603.2,0.0033056]
[1646907411750,0.15261616,2603.3,2602.7,5.50908184]
[1646907411751,0.05362171,2603.3,2602.7,5.50908184]
[1646907411955,0.20623787,2603.3,2602.7,1.2611]
[1646907412155,0.15261616,2603.2,2602.7,1.2611]
[1646907412365,0.15261616,2603.2,2602.8,1.16631394]
[1646907412555,0.20598976,2603.2,2602.8,1.16631394]
[1646907412755,0.15261616,2603.1,2602.8,1.16631394]
[1646907413199,0.15261616,2603.1,2602.9,0.00330246]
[1646907413402,0.15261616,2603.1,2602.8,0.8668289]
[1646907413804,0.15261616,2603.1,2602.7,0.3]
[1646907414103,0.15261616,2603.1,2602.4,1.1461]
[1646907414104,0.15261616,2603.0,2602.4,1.1461]
[1646907414300,0.15261616,2603.0,2602.1,7.61764849]
[1646907414301,4.41167974,2603.0,2602.1,0.3841]
[1646907414501,0.20298884,2602.9,2602.0,1.2016]
[1646907414702,0.91334491,2602.9,2602.1,1.35880356]
[1646907415003,0.91334491,2602.9,2602.2,1.0917495]
[1646907415004,1.02325493,2602.7,2602.2,1.0917495]
[1646907415206,0.05609182,2602.5,2602.2,1.0917495]
[1646907415402,0.15261616,2602.4,2602.2,0.9917495]
[1646907415601,0.15261616,2602.3,2602.2,0.9917495]
[1646907416101,0.05609182,2602.5,2601.8,1.4408]
[1646907416302,0.15261616,2602.4,2601.8,1.4408]
[1646907416506,0.15261616,2602.4,2601.8,1.2487]
[1646907416507,0.20622286,2602.3,2601.8,1.2487]
[1646907416762,0.20622286,2602.3,2601.6,2.3073]
[1646907416964,0.15261616,2602.2,2602.0,0.0035543]
[1646907417164,0.15261616,2602.1,2602.0,0.0035543]
[1646907417568,0.9616,2602.2,2602.0,0.0035543]
[1646907417767,0.9616,2602.2,2601.6,2.3073]
[1646907417768,0.15261616,2602.1,2601.6,2.3073]
[1646907417966,0.20622114,2602.1,2601.4,1.5072]
[1646907418266,0.20622114,2602.1,2601.9,0.00355436]
[1646907418467,0.15261616,2602.0,2601.9,0.00355436]
[1646907418667,0.05360498,2602.1,2601.9,0.00355436]
[1646907418866,0.10261616,2602.0,2601.9,0.00355436]
[1646907419070,1.92338,2602.0,2601.7,0.90097895]
[1646907419270,1.92338,2602.0,2601.8,0.00355442]
[1646907419470,0.06124367,2601.9,2601.8,0.00355442]
[1646907419870,0.06124367,2601.9,2601.2,5.7883273]
[1646907419871,0.04962405,2601.6,2601.2,5.7883273]
[1646907420070,6.04959405,2601.6,2601.2,5.7883273]
[1646907420268,0.05370659,2601.5,2601.2,5.7883273]
[1646907420512,1.2269039,2601.4,2601.2,5.7883273]
[1646907420702,0.0608659,2601.3,2601.2,5.7883273]
[1646907421311,3.5608659,2601.3,2601.2,5.7883273]
[1646907421710,1.0608659,2601.3,2601.2,5.7883273]
[1646907422107,0.0608659,2601.3,2601.2,5.7883273]
[1646907422308,3.5608659,2601.3,2601.2,5.7883273]
[1646907422707,4.5608659,2601.3,2601.2,5.7883273]